fUST/lending_fUST_20240529
["ID","MTS","AMOUNT","RATE_DAILY","PERIOD"]
[328131431,1716917441845,-153.0,0.00020822,2]
[328131432,1716917441855,-153.0,0.00020822,2]
[328131433,1716917441865,-153.0,0.00020822,2]
[328131434,1716917441875,-153.0,0.00020822,2]
[328131435,1716917441885,-2509.35857601,0.00020902,2]
[328131436,1716917441900,-16763.46376569,0.00020902,2]
[328131437,1716917441910,-292.83,0.00020904,3]
[328131438,1716917441919,-878.51,0.00020904,3]
[328131439,1716917441928,-155.05238617,0.0002091,2]
[328131440,1716917441939,-155.19611248,0.0002091,2]
[328131441,1716917441950,-587.58701609,0.0002091,2]
[328131442,1716917441960,-237.33731791,0.0002091,2]
[328131443,1716917441972,-540.14703396,0.0002091,2]
[328131444,1716917441982,-209.1310101,0.00020911,2]
[328131445,1716917441991,-64.03791793,0.00020912,2]
[328131446,1716917442005,-878.37254461,0.00020912,2]
[328131447,1716917442015,-157.68480216,0.00020912,2]
[328131448,1716917442025,-1352.0716296,0.00020912,2]
[328131449,1716917442034,-5571.11561455,0.00020912,2]
[328131450,1716917442049,-10288.12103388,0.00020912,2]
[328131451,1716917442058,-307.29110226,0.00020912,2]
[328131452,1716917442068,-776.81865733,0.00020912,2]
[328131453,1716917442082,-563.45132276,0.00020912,2]
[328131454,1716917442092,-913.20966977,0.00020912,2]
[328131455,1716917442102,-316.57156977,0.00020912,2]
[328131456,1716917442112,-5491.07734695,0.00020912,2]
[328131457,1716917442126,-4078.12415003,0.00020912,2]
[328131458,1716917442136,-1227.04447943,0.00020912,2]
[328131459,1716917442145,-152.73222523,0.00020913,2]
[328131460,1716917442154,-366.66156415,0.00020913,2]
[328131461,1716917442164,-500.0,0.00020913,2]
[328131462,1716917442173,-589.03755309,0.00020913,2]
[328131463,1716917442182,-465.38831547,0.00020913,2]
[328131464,1716917442193,-609.98534697,0.00020913,2]
[328131465,1716917442206,-500.0,0.00020913,2]
[328131466,1716917442218,-500.0,0.00020913,2]
[328131467,1716917442227,-214.63527521,0.00020913,2]
[328131468,1716917442238,-500.0,0.00020913,2]
[328131469,1716917442247,-500.0,0.00020913,2]
[328131470,1716917442256,-500.0,0.00020913,2]
[328131471,1716917442265,-500.0,0.00020913,2]
[328131472,1716917442277,-500.0,0.00020913,2]
[328131473,1716917442287,-500.0,0.00021,2]
[328131474,1716917442296,-500.0,0.00021,2]
[328131475,1716917442306,-500.0,0.00021,2]
[328131476,1716917442315,-500.0,0.00021,2]
[328131477,1716917442324,-431.25611655,0.00021,2]
[328131478,1716917442338,-68.74388345,0.00021,2]
[328131479,1716917442348,-500.0,0.00021,2]
[328131480,1716917442357,-500.0,0.00021,2]
[328131481,1716917442366,-500.0,0.00021,2]
[328131482,1716917442375,-500.0,0.00021,2]
[328131483,1716917442384,-500.0,0.00021,2]
[328131484,1716917442393,-500.0,0.00021,2]
[328131485,1716917442403,-500.0,0.00021,2]
[328131486,1716917442413,-500.0,0.00021,2]
[328131487,1716917442422,-500.0,0.00021,2]
[328131488,1716917442432,-500.0,0.00021,2]
[328131489,1716917442441,-500.0,0.00021,2]
[328131490,1716917442452,-500.0,0.00021,2]
[328131491,1716917442461,-500.0,0.00021,2]
[328131492,1716917442474,-500.0,0.00021,2]
[328131493,1716917442483,-500.0,0.00021,2]
[328131494,1716917442493,-500.0,0.00021,2]
[328131495,1716917442502,-500.0,0.00021,2]
[328131496,1716917442511,-500.0,0.00021,2]
[328131497,1716917442521,-500.0,0.00021,2]
[328131498,1716917442530,-500.0,0.00021,2]
[328131499,1716917442539,-500.0,0.00021,2]
[328131500,1716917442548,-500.0,0.00021,2]
[328131501,1716917442558,-500.0,0.00021,2]
[328131502,1716917442567,-500.0,0.00021,2]
[328131503,1716917442577,-500.0,0.00021,2]
[328131504,1716917442587,-500.0,0.00021,2]
[328131505,1716917442596,-500.0,0.00021,2]
[328131506,1716917442606,-549.0,0.00021,2]
[328131507,1716917442616,-169.45911642,0.00021147,2]
[328131508,1716917442625,-263.3442329,0.0002137,2]
[328131509,1716917442634,-169.45911642,0.00021481,2]
[328131510,1716917442644,-177.9148505,0.00021781,2]
[328131511,1716917442653,-153.0,0.00021781,2]
[328131512,1716917442663,-153.0,0.00021781,2]
[328131513,1716917442672,-153.0,0.00021781,2]
[328131514,1716917442682,-282.0,0.000218,2]
[328131515,1716917442691,-156.87701235,0.00021815,2]
[328131516,1716917442701,-169.45911642,0.00021816,2]
[328131517,1716917442710,-6448.8925527,0.00021817,3]
[328131518,1716917442740,-6038.00782953,0.00021817,3]
[328131540,1716917443356,-1614.24210194,0.00021817,3]
[328131542,1716917443643,-2649.2478,0.00021817,3]
[328131547,1716917446401,-8708.4997234,0.00021817,3]
[328131548,1716917446412,-279.75,0.00021817,3]
[328131561,1716918100273,157.40785376,9.999e-05,2]
[328131562,1716918160766,3635.29267682,9.999e-05,2]
[328131563,1716918166787,3376.62673724,9.999e-05,2]
[328131564,1716918170118,299.7786707,9.999e-05,2]
[328131565,1716918176762,3648.4597674,9.999e-05,2]
[328131566,1716918178718,3376.62673724,9.999e-05,2]
[328131567,1716918188124,299.7786707,9.999e-05,2]
[328131568,1716918196867,2541.67333783,9.999e-05,2]
[328131569,1716918208203,299.36996738,9.999e-05,2]
[328131572,1716918332626,922.33231082,0.00014,2]
[328131575,1716918396113,-157.40785376,0.00017456,2]
[328131576,1716918396135,-99.17182059,0.00017457,2]
[328131577,1716918425190,-394.35093071,0.00017457,2]
[328131578,1716918425211,-441.1171266,0.00017522,2]
[328131579,1716918425234,-250.0,0.00017826,2]
[328131580,1716918425254,-217.33003982,0.00017906,2]
[328131581,1716918430121,-572.07613906,0.00017906,2]
[328131582,1716918434088,-576.07201728,0.00017906,2]
[328131583,1716918443100,-178.45497884,0.00017906,2]
[328131584,1716918443119,-123.54502116,0.00018007,2]
[328131585,1716918449118,-392.25985664,0.00018007,2]
[328131586,1716918452150,-461.48435646,0.00018007,2]
[328131587,1716918545119,-6980.66832663,0.00017947,2]
[328131588,1716918546108,-1497.33074395,0.00017947,2]
[328131589,1716918548210,-65.48083092,0.00017947,2]
[328131590,1716918564129,-1868.39153354,0.00018007,2]
[328131591,1716918564161,-24900.0,0.00018124,2]
[328131592,1716918564189,-605.27757763,0.00018827,2]
[328131593,1716918564216,-157.40785376,0.00019054,2]
[328131594,1716918564242,-9723.45222226,0.00019155,2]
[328131634,1716918632641,-658.24540684,0.00019155,2]
[328131636,1716918632653,-638.5628782,0.00019155,2]
[328131667,1716918639940,-789.81205016,0.00019155,2]
[328131668,1716918639950,-181.78250116,0.00019459,2]
[328131669,1716918639960,-4240.04684566,0.00019559,2]
[328131670,1716918639971,-605.27757763,0.00019865,2]
[328131671,1716918639981,-613.3616838,0.00019866,2]
[328131672,1716918639991,-279.1103904,0.0002,2]
[328131673,1716918640001,-527.89257557,0.0002,4]
[328131674,1716918640011,-181.78250115,0.00020048,2]
[328131675,1716918640021,-280.53391331,0.00020385,2]
[328131676,1716918640030,-181.78250115,0.00020637,2]
[328131677,1716918640040,-288.49,0.00020904,3]
[328131678,1716918640050,-2909.71933543,0.00020912,2]
[328131679,1716918640060,-7902.09549174,0.00020912,2]
[328131680,1716918640070,-8200.69557193,0.00020912,7]
[328131681,1716918640080,-1270.66944502,0.00020912,2]
[328131682,1716918640089,-177.15435338,0.00020912,2]
[328131683,1716918640099,-400.0,0.00020912,2]
[328131684,1716918640109,-154.92253873,0.00020912,2]
[328131685,1716918640118,-155.41138368,0.00020912,2]
[328131686,1716918640128,-2116.65624076,0.00020912,2]
[328131687,1716918640137,-157.40785376,0.00020912,2]
[328131688,1716918640147,-455.92409776,0.00020912,2]
[328131689,1716918640156,-2241.41594021,0.00020912,2]
[328131690,1716918640165,-1280.0,0.00021,2]
[328131691,1716918640175,-181.78250115,0.00021226,2]
[328131692,1716918640184,-637.68335694,0.00021308,2]
[328131693,1716918640193,-4227.93462558,0.00021395,2]
[328131694,1716918640203,-282.0,0.000218,2]
[328131695,1716918640212,-865.49,0.00021806,3]
[328131696,1716918640221,-475.70800585,0.00021815,2]
[328131697,1716918640230,-252.44466561,0.00021815,2]
[328131698,1716918640240,-500.0,0.00021815,2]
[328131699,1716918640249,-614.39058256,0.00021815,2]
[328131700,1716918640259,-181.78250115,0.00021815,2]
[328131701,1716918640268,-48374.23907329,0.00021816,3]
[328131702,1716918640277,-3983.08440167,0.00021817,2]
[328131703,1716918640287,-461.34904634,0.00021817,2]
[328131704,1716918640296,-67003.20312525,0.00021817,2]
[328131705,1716918640370,-11339.476094,0.00021817,2]
[328131735,1716918643731,-1327.84,0.00021817,2]
[328131736,1716918643743,-2967.57851399,0.00021817,2]
[328131737,1716918643753,-151.0,0.00021915,2]
[328131738,1716918643762,-15719.67657817,0.00021915,7]
[328131739,1716918643772,-33221.74490784,0.00021916,7]
[328131740,1716918643784,-17274.04055521,0.00021916,7]
[328131747,1716918646566,-13151.87065651,0.00021916,7]
[328131757,1716919266923,157.40785376,9.999e-05,2]
[328131758,1716919626172,-157.40785376,0.00019067,2]
[328131759,1716919626193,-605.27757763,0.00019068,2]
[328131760,1716919626216,-12643.50137682,0.00019069,2]
[328131761,1716919633104,-361.71259017,0.00019069,2]
[328131762,1716919635200,-412.93893029,0.00019069,2]
[328131763,1716919637112,-151.0,0.00019069,2]
[328131764,1716919638151,-636.17886592,0.00019069,2]
[328131765,1716919762963,150.0,0.000189,2]
[328131768,1716919819477,87.6009847,0.00015682,2]
[328131769,1716919819498,151.0,0.00015682,2]
[328131770,1716919819520,212.45693681,0.00015682,2]
[328131771,1716919819540,164.4738548,0.00015682,2]
[328131830,1716919840188,-158.69927492,0.00019068,2]
[328131832,1716919840204,-446.57830271,0.00019068,2]
[328131833,1716919840213,-155.45307699,0.00019069,2]
[328131834,1716919840223,-10694.6682368,0.00019069,2]
[328131835,1716919840232,-170.636113,0.00019661,2]
[328131836,1716919840241,-250.0,0.00019682,2]
[328131837,1716919840250,-7481.4672469,0.00020095,2]
[328131838,1716919840259,-225.80707008,0.00020812,2]
[328131839,1716919840268,-276.86087785,0.00020911,2]
[328131840,1716919840278,-10519.71803852,0.00020912,2]
[328131841,1716919840287,-154.93802479,0.00020912,2]
[328131842,1716919840297,-7032.69480688,0.00020912,2]
[328131843,1716919840306,-1185.22931853,0.00020912,2]
[328131855,1716919842351,-931.42692223,0.00020912,2]
[328131856,1716919842360,-556.93551019,0.00020912,2]
[328131858,1716919842370,-246.55753604,0.00020912,2]
[328131860,1716919842379,-180.74292094,0.00020912,2]
[328131861,1716919842389,-372.59312136,0.00020912,2]
[328131862,1716919842398,-14370.54978678,0.00020912,2]
[328131863,1716919842408,-3970.7950552,0.00021,2]
[328131864,1716919842420,-1144.17653548,0.00021,2]
[328131865,1716919842429,-477.59596396,0.00021422,2]
[328131866,1716919842439,-4227.93462558,0.00021423,2]
[328131867,1716919842451,-300.0,0.00021672,2]
[328131868,1716919842461,-796.71,0.00021807,3]
[328131869,1716919842471,-12835.57079401,0.00021817,3]
[328131870,1716919842480,-282.0,0.000219,2]
[328131871,1716919842490,-171.61751,0.000219,2]
[328131872,1716919842499,-1008.651781,0.000219,2]
[328131873,1716919842508,-344.77320791,0.00021914,2]
[328131874,1716919842517,-288.35761329,0.00021914,2]
[328131875,1716919842527,-513.48820985,0.00021915,2]
[328131876,1716919842536,-26201.48803718,0.00021916,7]
[328131879,1716919844068,-297.34138797,0.00021916,7]
[328131884,1716919844641,-438.90033595,0.00021916,7]
[328131885,1716919844666,-142.46261891,0.00021916,7]
[328131886,1716919844679,-1019.502,0.00021916,7]
[328131894,1716919847471,-7336.79132724,0.00021916,7]
[328131905,1716919949459,72.86346311,0.00016435,2]
[328131916,1716920536595,157.40785376,9.999e-05,2]
[328131917,1716920579498,5399.3185367,0.000275,30]
[328131918,1716920825187,-402.73222523,0.00016435,2]
[328131919,1716920828184,-309.78316417,0.00016435,2]
[328131920,1716920832100,-352.02368497,0.00016435,2]
[328131921,1716920832121,-61.37181294,0.00019261,2]
[328131922,1716920842134,-96.03604082,0.00019261,2]
[328131923,1716920842155,-205.96395918,0.00019262,2]
[328131950,1716921032031,-151.0,0.00019263,3]
[328131952,1716921032040,-605.27757763,0.00019655,2]
[328131954,1716921032049,-2598.89937053,0.00019656,2]
[328131956,1716921032061,-1869.48495548,0.00019656,2]
[328132060,1716921037955,-3130.08597883,0.00019656,2]
[328132061,1716921037970,-6299.83857148,0.00019656,2]
[328132062,1716921037985,-5794.98540149,0.00019656,2]
[328132077,1716921041717,-5206.70572219,0.00019656,2]
[328132078,1716921041728,-237.33731791,0.00020864,2]
[328132079,1716921041744,-197.58118632,0.00020864,2]
[328132080,1716921041756,-186.45096833,0.00020912,2]
[328132081,1716921041766,-506.51848556,0.00020912,2]
[328132082,1716921041777,-250.03291857,0.00020912,2]
[328132083,1716921041787,-11383.11080902,0.00020913,2]
[328132099,1716921043298,-660.47388686,0.00020913,2]
[328132128,1716921113338,237.6009847,9.999e-05,2]
[328132129,1716921113361,236.77481707,9.999e-05,2]
[328132130,1716921113381,82.86355923,9.999e-05,2]
[328132131,1716921129215,68.13644077,9.999e-05,2]
[328132132,1716921129236,237.33731791,9.999e-05,2]
[328132133,1716921129257,183.04753217,9.999e-05,2]
[328132143,1716922028236,-219.39383736,0.0001568,2]
[328132144,1716922028255,-82.60616264,0.00017669,2]
[328132145,1716922038103,-111.36178436,0.00017669,2]
[328132146,1716922038124,-518.23539023,0.00017918,2]
[328132147,1716922044130,-232.29572767,0.00017918,2]
[328132148,1716922044151,-339.78041139,0.00018022,2]
[328132149,1716922046115,-461.48435646,0.00018022,2]
[328132150,1716922163108,-176.02446645,0.00018022,2]
[328132151,1716922163129,-181.0889242,0.00018089,2]
[328132152,1716922163150,-250.0,0.00018235,2]
[328132153,1716922163172,-605.27757763,0.0001856,2]
[328132154,1716922163193,-24900.0,0.00018561,2]
[328132155,1716922163214,-2182.94499146,0.000189,2]
[328132219,1716922232601,-269.24912565,0.000189,2]
[328132221,1716922232613,-1911.63357847,0.000189,2]
[328132223,1716922232622,-163.446762,0.00019178,2]
[328132225,1716922232632,-401.36445486,0.00019868,2]
[328132227,1716922232642,-275.34391768,0.00019869,2]
[328132229,1716922232651,-11072.80660024,0.00019968,2]
[328132231,1716922232660,-7616.11782581,0.00019969,2]
[328132233,1716922232672,-4953.46716337,0.00019999,2]
[328132235,1716922232684,-364.95432608,0.00019999,2]
[328132237,1716922232694,-155.00680195,0.0002,2]
[328132239,1716922232703,-49.03887197,0.0002,2]
[328132242,1716922232716,-230.07151843,0.0002,2]
[328132244,1716922232728,-3136.32848157,0.0002,2]
[328132246,1716922232739,-909.67516354,0.0002,2]
[328132311,1716922240640,-4342.368288,0.0002,2]
[328132312,1716922240652,-7230.6444768,0.0002,2]
[328132313,1716922240664,-9114.80707628,0.0002,2]
[328132315,1716922240677,-401.36445482,0.00020103,2]
[328132316,1716922240686,-401.36445482,0.00020339,2]
[328132317,1716922240696,-401.36445482,0.00020574,2]
[328132318,1716922240706,-4227.93462558,0.00020609,2]
[328132319,1716922240716,-401.36445482,0.00020809,2]
[328132320,1716922240725,-155.15694195,0.00020904,2]
[328132321,1716922240737,-2157.64637747,0.00020904,2]
[328132322,1716922240746,-251.7553016,0.00020904,2]
[328132323,1716922240757,-306.82904941,0.00020904,2]
[328132324,1716922240768,-690.72744387,0.00020904,2]
[328132325,1716922240778,-304.45245995,0.00020904,2]
[328132326,1716922240788,-282.79519979,0.00020904,2]
[328132327,1716922240798,-247.64628,0.00020905,2]
[328132328,1716922240807,-559.557284,0.00020905,2]
[328132329,1716922240817,-373.31140799,0.00020905,2]
[328132330,1716922240827,-193.49693288,0.00020905,2]
[328132331,1716922240840,-177.00596848,0.00020905,2]
[328132332,1716922240849,-500.0,0.00020905,2]
[328132333,1716922240860,-500.0,0.00020905,2]
[328132334,1716922240869,-500.0,0.00020905,2]
[328132335,1716922240878,-640.38726381,0.00020905,2]
[328132336,1716922240888,-631.03173013,0.00020905,2]
[328132337,1716922240897,-3578.00083753,0.00020905,7]
[328132338,1716922240909,-4572.94,0.00020905,7]
[328132339,1716922240921,-3377.29311517,0.00020905,7]
[328132340,1716922240930,-155.38338781,0.00020906,2]
[328132341,1716922240940,-1832.84317067,0.00020906,2]
[328132342,1716922240951,-3792.79999999,0.00020906,2]
[328132343,1716922240963,-2276.45232108,0.00020906,2]
[328132344,1716922240974,-896.50695997,0.00020906,2]
[328132347,1716922241136,-2053.19903549,0.00020906,2]
[328132348,1716922241147,-157.37250312,0.00020906,2]
[328132349,1716922241157,-1152.36513841,0.00020906,2]
[328132350,1716922241166,-230.68622516,0.00020906,2]
[328132351,1716922241176,-523.01612629,0.00020906,2]
[328132352,1716922241185,-264.89820924,0.00020906,2]
[328132359,1716922241344,-1087.03652662,0.00020906,2]
[328132360,1716922241354,-1342.26649227,0.00020906,2]
[328132361,1716922241363,-155.50050359,0.00020906,2]
[328132362,1716922241373,-180.38717709,0.00020906,2]
[328132363,1716922241382,-1043.80930043,0.00020906,2]
[328132364,1716922242576,-10172.89162433,0.00020906,2]
[328132366,1716922242585,-261.10630803,0.00020906,2]
[328132368,1716922242594,-155.23710437,0.00020907,2]
[328132369,1716922242604,-190.06506775,0.00020907,2]
[328132370,1716922242613,-566.01283752,0.00020907,2]
[328132371,1716922242622,-1685.54934894,0.00020907,2]
[328132372,1716922242631,-351.36873693,0.00020907,2]
[328132373,1716922242641,-273.93598036,0.00020907,2]
[328132374,1716922242650,-302.66477058,0.00020907,2]
[328132375,1716922242659,-164.28466186,0.00020907,2]
[328132376,1716922242668,-155.08042853,0.00020907,2]
[328132377,1716922242680,-1373.36058678,0.00020907,2]
[328132378,1716922242691,-154.93802479,0.00020907,2]
[328132379,1716922242700,-283.89725164,0.00020907,2]
[328132380,1716922242709,-354.56402342,0.00020907,2]
[328132381,1716922242719,-943.36429939,0.00020907,2]
[328132382,1716922242731,-154.8915759,0.00020907,2]
[328132383,1716922242740,-151.0,0.00020907,2]
[328132384,1716922242749,-151.0,0.00020907,2]
[328132385,1716922242761,-162.046478,0.00020907,2]
[328132386,1716922242770,-162.046478,0.00020907,2]
[328132387,1716922242779,-151.0,0.00020907,2]
[328132388,1716922242789,-151.0,0.00020907,2]
[328132389,1716922242798,-331.412327,0.00020907,2]
[328132391,1716922242808,-331.412327,0.00020907,2]
[328132392,1716922242817,-837.542242,0.00020907,2]
[328132393,1716922242826,-837.542242,0.00020907,2]
[328132394,1716922242836,-151.0,0.00020907,2]
[328132395,1716922242846,-151.0,0.00020907,2]
[328132396,1716922242856,-152.077392,0.00020907,2]
[328132397,1716922242866,-155.075128,0.00020907,2]
[328132398,1716922242875,-151.0,0.00020907,2]
[328132399,1716922242884,-492.363205,0.00020907,2]
[328132400,1716922242894,-151.0,0.00020907,2]
[328132401,1716922242903,-492.363205,0.00020907,2]
[328132402,1716922242912,-151.0,0.00020907,2]
[328132403,1716922242922,-514.315569,0.00020907,2]
[328132404,1716922242931,-514.315569,0.00020907,2]
[328132405,1716922242940,-151.0,0.00020907,2]
[328132406,1716922242950,-151.0,0.00020907,2]
[328132407,1716922242959,-151.0,0.00020907,2]
[328132408,1716922242968,-919.269326,0.00020907,2]
[328132409,1716922242979,-919.269326,0.00020907,2]
[328132410,1716922242989,-151.0,0.00020907,2]
[328132411,1716922242998,-173.65,0.00020907,2]
[328132412,1716922243007,-173.65,0.00020907,2]
[328132413,1716922243016,-16205.09115023,0.00020908,2]
[328132414,1716922243034,-3503.80823475,0.00020908,2]
[328132415,1716922243045,-5226.26594299,0.00020908,2]
[328132436,1716922243849,-358.50001,0.00020908,2]
[328132437,1716922243861,-14455.17987751,0.00020908,2]
[328132445,1716922244662,-1989.07390609,0.00020908,2]
[328132492,1716922247421,-338.0,0.00020908,2]
[328132493,1716922247433,-595.89022234,0.00020908,2]
[328132494,1716922247443,-2404.21274999,0.00020908,2]
[328132495,1716922247452,-151.0,0.00020908,2]
[328132496,1716922247460,-151.0,0.00020908,2]
[328132497,1716922247469,-151.0,0.00020908,2]
[328132498,1716922247478,-151.0,0.00020908,2]
[328132499,1716922247490,-151.0,0.00020908,2]
[328132500,1716922247499,-151.0,0.00020908,2]
[328132501,1716922247508,-151.0,0.00020908,2]
[328132502,1716922247517,-162.046478,0.00020908,2]
[328132503,1716922247526,-162.046478,0.00020908,2]
[328132504,1716922247534,-162.046478,0.00020908,2]
[328132505,1716922247543,-162.046478,0.00020908,2]
[328132506,1716922247552,-151.0,0.00020908,2]
[328132507,1716922247561,-151.0,0.00020908,2]
[328132508,1716922247571,-331.412327,0.00020908,2]
[328132509,1716922247579,-331.412327,0.00020908,2]
[328132510,1716922247589,-331.412327,0.00020908,2]
[328132511,1716922247598,-331.412327,0.00020908,2]
[328132512,1716922247607,-837.542242,0.00020908,2]
[328132513,1716922247616,-837.542242,0.00020908,2]
[328132514,1716922247625,-837.542242,0.00020908,2]
[328132515,1716922247634,-837.542242,0.00020908,2]
[328132516,1716922247644,-151.0,0.00020908,2]
[328132517,1716922247653,-151.0,0.00020908,2]
[328132518,1716922247662,-151.0,0.00020908,2]
[328132519,1716922247671,-151.0,0.00020908,2]
[328132520,1716922247685,-151.0,0.00020908,2]
[328132521,1716922247694,-151.0,0.00020908,2]
[328132522,1716922247703,-492.363205,0.00020908,2]
[328132523,1716922247712,-492.363205,0.00020908,2]
[328132524,1716922247722,-151.0,0.00020908,2]
[328132525,1716922247731,-151.0,0.00020908,2]
[328132526,1716922247743,-492.363205,0.00020908,2]
[328132527,1716922247752,-492.363205,0.00020908,2]
[328132528,1716922247764,-151.0,0.00020908,2]
[328132529,1716922247774,-514.315569,0.00020908,2]
[328132530,1716922247783,-514.315569,0.00020908,2]
[328132531,1716922247792,-514.315569,0.00020908,2]
[328132532,1716922247801,-514.315569,0.00020908,2]
[328132533,1716922247811,-151.0,0.00020908,2]
[328132534,1716922247820,-151.0,0.00020908,2]
[328132535,1716922247830,-151.0,0.00020908,2]
[328132536,1716922247839,-151.0,0.00020908,2]
[328132537,1716922247848,-263.061871,0.00020908,2]
[328132538,1716922247858,-919.269326,0.00020908,2]
[328132539,1716922247867,-919.269326,0.00020908,2]
[328132540,1716922247876,-919.269326,0.00020908,2]
[328132541,1716922247885,-919.269326,0.00020908,2]
[328132542,1716922247895,-151.0,0.00020908,2]
[328132543,1716922247904,-151.0,0.00020908,2]
[328132544,1716922247914,-173.65,0.00020908,2]
[328132545,1716922247923,-173.65,0.00020908,2]
[328132546,1716922247932,-173.65,0.00020908,2]
[328132547,1716922247943,-173.65,0.00020908,2]
[328132548,1716922247952,-49915.60278227,0.00020908,7]
[328132549,1716922247963,-704.13472746,0.00020909,2]
[328132550,1716922247973,-29131.50835347,0.00020909,2]
[328132551,1716922247983,-151.0,0.00020909,2]
[328132552,1716922247996,-151.0,0.00020909,2]
[328132553,1716922248006,-159.298408,0.00020909,2]
[328132554,1716922248015,-151.0,0.00020909,2]
[328132555,1716922248023,-151.0,0.00020909,2]
[328132556,1716922248032,-151.0,0.00020909,2]
[328132557,1716922248041,-151.0,0.00020909,2]
[328132558,1716922248050,-151.0,0.00020909,2]
[328132559,1716922248060,-151.0,0.00020909,2]
[328132560,1716922248070,-151.0,0.00020909,2]
[328132561,1716922248079,-155.626995,0.00020909,2]
[328132562,1716922248089,-155.626995,0.00020909,2]
[328132563,1716922248098,-155.626995,0.00020909,2]
[328132564,1716922248107,-155.626995,0.00020909,2]
[328132565,1716922248117,-430.206371,0.00020909,2]
[328132566,1716922248126,-430.206371,0.00020909,2]
[328132567,1716922248135,-378.187586,0.00020909,2]
[328132568,1716922248144,-378.187586,0.00020909,2]
[328132569,1716922248153,-430.206371,0.00020909,2]
[328132570,1716922248162,-430.206371,0.00020909,2]
[328132571,1716922248172,-378.187586,0.00020909,2]
[328132572,1716922248181,-378.187586,0.00020909,2]
[328132573,1716922248191,-151.0,0.00020909,2]
[328132574,1716922248200,-152.325089,0.00020909,2]
[328132575,1716922248210,-151.0,0.00020909,2]
[328132576,1716922248219,-151.0,0.00020909,2]
[328132577,1716922248228,-151.0,0.00020909,2]
[328132578,1716922248239,-151.0,0.00020909,2]
[328132579,1716922248248,-151.0,0.00020909,2]
[328132580,1716922248257,-151.0,0.00020909,2]
[328132581,1716922248266,-151.0,0.00020909,2]
[328132582,1716922248275,-151.0,0.00020909,2]
[328132583,1716922248285,-151.0,0.00020909,2]
[328132584,1716922248294,-151.0,0.00020909,2]
[328132585,1716922248304,-151.0,0.00020909,2]
[328132586,1716922248313,-189.290507,0.00020909,2]
[328132587,1716922248322,-162.046478,0.00020909,2]
[328132588,1716922248331,-162.046478,0.00020909,2]
[328132589,1716922248340,-151.0,0.00020909,2]
[328132590,1716922248349,-331.412327,0.00020909,2]
[328132591,1716922248358,-331.412327,0.00020909,2]
[328132592,1716922248367,-837.542242,0.00020909,2]
[328132593,1716922248377,-837.542242,0.00020909,2]
[328132594,1716922248388,-153.091958,0.00020909,2]
[328132595,1716922248397,-151.0,0.00020909,2]
[328132596,1716922248407,-151.0,0.00020909,2]
[328132597,1716922248416,-492.363205,0.00020909,2]
[328132598,1716922248425,-151.0,0.00020909,2]
[328132599,1716922248434,-492.363205,0.00020909,2]
[328132600,1716922248443,-514.315569,0.00020909,2]
[328132601,1716922248452,-514.315569,0.00020909,2]
[328132602,1716922248461,-151.0,0.00020909,2]
[328132603,1716922248470,-151.0,0.00020909,2]
[328132604,1716922248479,-919.269326,0.00020909,2]
[328132605,1716922248491,-919.269326,0.00020909,2]
[328132606,1716922248501,-208.82264,0.00020909,2]
[328132607,1716922248510,-173.65,0.00020909,2]
[328132608,1716922248519,-173.65,0.00020909,2]
[328132609,1716922248529,-31353.6424272,0.0002091,2]
[328132610,1716922248538,-1505.53275912,0.0002091,2]
[328132611,1716922248547,-820.30862122,0.0002091,2]
[328132612,1716922248557,-155.29385504,0.0002091,2]
[328132613,1716922248566,-1583.07627159,0.0002091,2]
[328132614,1716922248576,-175.66733114,0.0002091,2]
[328132615,1716922248585,-151.0,0.0002091,2]
[328132616,1716922248595,-151.980159,0.0002091,2]
[328132617,1716922248604,-151.0,0.0002091,2]